[Event "Titled Tuesday Blitz March 28 Early 2023"]
[White "Ordekalog"]
[Black "Fernandez Garcia, Gumersindo"]
[BlackFideId "24516740"]
[WhiteElo "2557"]
[BlackElo "2093"]
[Result "0-1"]
[Round "10"]
[TimeControl "180+2"]
[Date "2023.03.28"]
[WhiteClock "0:00:01"]
[BlackClock "0:00:43"]

1. e4 {[%clk 0:03:00]}  d6 {[%clk 0:02:58]} 2. d3 {[%clk 0:02:59]}  Nf6 {[%clk 0:02:58]} 3. f4 {[%clk 0:02:58]}  e5 {[%clk 0:02:59]} 4. Nf3 {[%clk 0:02:58]}  Nc6 {[%clk 0:02:58]} 5. Be2 {[%clk 0:02:55]}  Bg4 {[%clk 0:02:52]} 6. O-O {[%clk 0:02:53]}  Be7 {[%clk 0:02:50]} 7. h3 {[%clk 0:02:50]}  Bxf3 {[%clk 0:02:49]} 8. Bxf3 {[%clk 0:02:50]}  Nd4 {[%clk 0:02:50]} 9. Be3 {[%clk 0:02:36]}  Nxf3+ {[%clk 0:02:37]} 10. Qxf3 {[%clk 0:02:36]}  Qd7 {[%clk 0:02:36]} 11. c4 {[%clk 0:02:31]}  exf4 {[%clk 0:02:28]} 12. Bxf4 {[%clk 0:02:29]}  O-O {[%clk 0:02:29]} 13. Nc3 {[%clk 0:02:29]}  c6 {[%clk 0:02:28]} 14. Rad1 {[%clk 0:02:22]}  Rad8 {[%clk 0:02:22]} 15. g4 {[%clk 0:02:17]}  Ne8 {[%clk 0:02:14]} 16. Be3 {[%clk 0:02:09]}  b6 {[%clk 0:02:11]} 17. a4 {[%clk 0:02:01]}  Nc7 {[%clk 0:02:10]} 18. Qf5 {[%clk 0:01:53]}  Qxf5 {[%clk 0:02:08]} 19. gxf5 {[%clk 0:01:52]}  d5 {[%clk 0:02:03]} 20. Bf4 {[%clk 0:01:44]}  Bd6 {[%clk 0:01:50]} 21. e5 {[%clk 0:01:40]}  Bb4 {[%clk 0:01:40]} 22. e6 {[%clk 0:01:35]}  Rc8 {[%clk 0:01:39]} 23. Bxc7 {[%clk 0:00:37]}  Rxc7 {[%clk 0:01:39]} 24. cxd5 {[%clk 0:00:36]}  Bxc3 {[%clk 0:01:39]} 25. d6 {[%clk 0:00:24]}  Bd4+ {[%clk 0:01:39]} 26. Kg2 {[%clk 0:00:25]}  Rb7 {[%clk 0:01:30]} 27. d7 {[%clk 0:00:25]}  Bf6 {[%clk 0:01:25]} 28. Rde1 {[%clk 0:00:24]}  Rd8 {[%clk 0:01:17]} 29. b3 {[%clk 0:00:15]}  c5 {[%clk 0:01:15]} 30. Re4 {[%clk 0:00:14]}  Kf8 {[%clk 0:01:12]} 31. Rfe1 {[%clk 0:00:14]}  fxe6 {[%clk 0:01:10]} 32. fxe6 {[%clk 0:00:15]}  Ke7 {[%clk 0:01:11]} 33. Kf3 {[%clk 0:00:15]}  Rc7 {[%clk 0:01:08]} 34. Rg4 {[%clk 0:00:13]}  Rc6 {[%clk 0:01:08]} 35. Rge4 {[%clk 0:00:12]}  Rd6 {[%clk 0:01:08]} 36. R1e3 {[%clk 0:00:09]}  Rf8 {[%clk 0:01:06]} 37. Ke2 {[%clk 0:00:09]}  Bd4 {[%clk 0:01:04]} 38. Rg3 {[%clk 0:00:06]}  g6 {[%clk 0:01:01]} 39. Rf3 {[%clk 0:00:05]}  Rxf3 {[%clk 0:00:59]} 40. Kxf3 {[%clk 0:00:06]}  Bf6 {[%clk 0:01:00]} 41. Ke2 {[%clk 0:00:06]}  a6 {[%clk 0:00:51]} 42. Ke3 {[%clk 0:00:05]}  Bg5+ {[%clk 0:00:47]} 43. Ke2 {[%clk 0:00:04]}  Kd8 {[%clk 0:00:45]} 44. Re5 {[%clk 0:00:03]}  Be7 {[%clk 0:00:44]} 45. Re4 {[%clk 0:00:04]}  Kc7 {[%clk 0:00:44]} 46. Ke3 {[%clk 0:00:03]}  Rd5 {[%clk 0:00:44]} 47. Ke2 {[%clk 0:00:03]}  Kd6 {[%clk 0:00:43]} 48. Re3 {[%clk 0:00:02]}  Re5 {[%clk 0:00:43]} 49. Kf3 {[%clk 0:00:01]}  Rxe3+ {[%clk 0:00:43]} 0-1


[Site "https://www.chess.com"]

[Event "Titled Tuesday Blitz March 28 Early 2023"]
[White "Zacurdajev, Dmitry"]
[Black "lemayvega"]
[WhiteFideId "4196309"]
[WhiteElo "2179"]
[BlackElo "2520"]
[Result "1-0"]
[Round "10"]
[TimeControl "180+2"]
[Date "2023.03.28"]
[WhiteClock "0:00:43"]
[BlackClock "0:00:01"]

1. d4 {[%clk 0:03:00]}  Nf6 {[%clk 0:02:59]} 2. c4 {[%clk 0:03:01]}  g6 {[%clk 0:02:59]} 3. Nc3 {[%clk 0:03:01]}  d5 {[%clk 0:03:00]} 4. cxd5 {[%clk 0:03:02]}  Nxd5 {[%clk 0:03:00]} 5. e4 {[%clk 0:03:03]}  Nxc3 {[%clk 0:03:00]} 6. bxc3 {[%clk 0:03:04]}  Bg7 {[%clk 0:03:00]} 7. Nf3 {[%clk 0:03:04]}  O-O {[%clk 0:03:00]} 8. Be3 {[%clk 0:03:04]}  c5 {[%clk 0:03:00]} 9. Qd2 {[%clk 0:03:03]}  Qa5 {[%clk 0:03:01]} 10. Rb1 {[%clk 0:03:01]}  cxd4 {[%clk 0:02:55]} 11. cxd4 {[%clk 0:03:00]}  Qxd2+ {[%clk 0:02:54]} 12. Kxd2 {[%clk 0:02:55]}  Rd8 {[%clk 0:02:54]} 13. Bc4 {[%clk 0:02:54]}  Nc6 {[%clk 0:02:52]} 14. d5 {[%clk 0:02:52]}  e6 {[%clk 0:02:47]} 15. Ke2 {[%clk 0:02:50]}  exd5 {[%clk 0:02:44]} 16. Bxd5 {[%clk 0:02:51]}  h6 {[%clk 0:01:40]} 17. Rhc1 {[%clk 0:02:48]}  Re8 {[%clk 0:01:03]} 18. Nd2 {[%clk 0:01:50]}  Na5 {[%clk 0:00:35]} 19. Nc4 {[%clk 0:01:32]}  Nxc4 {[%clk 0:00:29]} 20. Rxc4 {[%clk 0:01:33]}  Be6 {[%clk 0:00:28]} 21. Rxb7 {[%clk 0:01:15]}  Bxd5 {[%clk 0:00:20]} 22. exd5 {[%clk 0:01:16]}  Red8 {[%clk 0:00:20]} 23. Rcc7 {[%clk 0:01:11]}  Rxd5 {[%clk 0:00:07]} 24. Rxf7 {[%clk 0:01:11]}  Bf8 {[%clk 0:00:08]} 25. Rf6 {[%clk 0:00:59]}  g5 {[%clk 0:00:03]} 26. Rg6+ {[%clk 0:00:42]}  Kh8 {[%clk 0:00:03]} 27. Bc1 {[%clk 0:00:43]}  Re8+ {[%clk 0:00:01]} 28. Kf3 {[%clk 0:00:43]} 1-0


[Site "https://www.chess.com"]

[Event "Titled Tuesday Blitz March 28 Early 2023"]
[White "Devaev, Alexander"]
[Black "Shevtchenko, Olesya"]
[WhiteFideId "4169395"]
[BlackFideId "24131890"]
[WhiteElo "2225"]
[BlackElo "2003"]
[Result "0-1"]
[Round "10"]
[TimeControl "180+2"]
[Date "2023.03.28"]
[WhiteClock "0:00:20"]
[BlackClock "0:01:07"]

1. d4 {[%clk 0:03:00]}  Nf6 {[%clk 0:02:57]} 2. Nf3 {[%clk 0:03:01]}  e6 {[%clk 0:02:57]} 3. c4 {[%clk 0:03:01]}  d5 {[%clk 0:02:56]} 4. Nc3 {[%clk 0:03:02]}  c5 {[%clk 0:02:55]} 5. cxd5 {[%clk 0:03:02]}  cxd4 {[%clk 0:02:55]} 6. Qxd4 {[%clk 0:03:00]}  exd5 {[%clk 0:02:56]} 7. e3 {[%clk 0:03:00]}  Be7 {[%clk 0:02:54]} 8. Bb5+ {[%clk 0:03:00]}  Nc6 {[%clk 0:02:54]} 9. O-O {[%clk 0:03:00]}  O-O {[%clk 0:02:54]} 10. Bxc6 {[%clk 0:02:59]}  bxc6 {[%clk 0:02:55]} 11. Qd3 {[%clk 0:02:57]}  Qc7 {[%clk 0:02:50]} 12. b3 {[%clk 0:02:56]}  a5 {[%clk 0:02:49]} 13. Rd1 {[%clk 0:02:51]}  Bg4 {[%clk 0:02:48]} 14. Ne2 {[%clk 0:02:44]}  Bxf3 {[%clk 0:02:40]} 15. gxf3 {[%clk 0:02:44]}  Qe5 {[%clk 0:02:41]} 16. Bd2 {[%clk 0:02:39]}  Qh5 {[%clk 0:02:38]} 17. Kg2 {[%clk 0:02:32]}  Bd6 {[%clk 0:02:28]} 18. Ng3 {[%clk 0:02:32]}  Qe5 {[%clk 0:02:05]} 19. Rac1 {[%clk 0:02:28]}  Rfc8 {[%clk 0:02:02]} 20. Rg1 {[%clk 0:01:57]}  Qe6 {[%clk 0:01:59]} 21. Nf5 {[%clk 0:01:50]}  Ba3 {[%clk 0:01:46]} 22. Rc2 {[%clk 0:01:43]}  Ne4 {[%clk 0:01:35]} 23. Nxg7 {[%clk 0:01:26]}  Kxg7 {[%clk 0:01:29]} 24. fxe4 {[%clk 0:01:22]}  Rg8 {[%clk 0:01:15]} 25. Kh1+ {[%clk 0:01:05]}  Kh6 {[%clk 0:01:13]} 26. exd5 {[%clk 0:00:54]}  Rxg1+ {[%clk 0:01:12]} 27. Kxg1 {[%clk 0:00:54]}  Rg8+ {[%clk 0:01:12]} 28. Kf1 {[%clk 0:00:55]}  Qh3+ {[%clk 0:01:08]} 29. Ke2 {[%clk 0:00:30]}  Qh5+ {[%clk 0:01:08]} 30. f3 {[%clk 0:00:22]}  Rg2+ {[%clk 0:01:08]} 31. Ke1 {[%clk 0:00:23]}  Rg1+ {[%clk 0:01:08]} 32. Kf2 {[%clk 0:00:20]}  Qxh2# {[%clk 0:01:07]} 0-1


[Site "https://www.chess.com"]

[Event "Titled Tuesday Blitz March 28 Early 2023"]
[White "Turzo, Attila"]
[Black "Kopczynski, Michal"]
[WhiteFideId "704954"]
[BlackFideId "1124200"]
[WhiteElo "2501"]
[BlackElo "2212"]
[Result "1-0"]
[Round "10"]
[TimeControl "180+2"]
[Date "2023.03.28"]
[WhiteClock "0:00:50"]
[BlackClock "0:00:03"]

1. e4 {[%clk 0:03:00]}  c5 {[%clk 0:02:59]} 2. Nc3 {[%clk 0:03:00]}  g6 {[%clk 0:02:58]} 3. f4 {[%clk 0:03:00]}  Bg7 {[%clk 0:02:56]} 4. Nf3 {[%clk 0:03:00]}  e6 {[%clk 0:02:56]} 5. e5 {[%clk 0:02:56]}  Ne7 {[%clk 0:02:56]} 6. Ne4 {[%clk 0:02:55]}  O-O {[%clk 0:02:49]} 7. Nd6 {[%clk 0:02:44]}  Nf5 {[%clk 0:02:44]} 8. Nxf5 {[%clk 0:02:42]}  gxf5 {[%clk 0:02:45]} 9. Be2 {[%clk 0:02:38]}  d6 {[%clk 0:02:42]} 10. exd6 {[%clk 0:02:34]}  Qxd6 {[%clk 0:02:43]} 11. d3 {[%clk 0:02:33]}  Nc6 {[%clk 0:02:42]} 12. O-O {[%clk 0:02:33]}  b6 {[%clk 0:02:42]} 13. c3 {[%clk 0:02:19]}  Bb7 {[%clk 0:02:41]} 14. Be3 {[%clk 0:02:17]}  Rad8 {[%clk 0:02:40]} 15. Qc2 {[%clk 0:02:12]}  Kh8 {[%clk 0:02:39]} 16. Rad1 {[%clk 0:02:11]}  Rg8 {[%clk 0:02:37]} 17. g3 {[%clk 0:02:07]}  Qd5 {[%clk 0:02:28]} 18. Rf2 {[%clk 0:02:03]}  Qxa2 {[%clk 0:02:23]} 19. Bf1 {[%clk 0:01:59]}  Ne7 {[%clk 0:01:46]} 20. Bg2 {[%clk 0:01:57]}  Bxf3 {[%clk 0:01:20]} 21. Bxf3 {[%clk 0:01:55]}  c4 {[%clk 0:01:18]} 22. Rfd2 {[%clk 0:01:42]}  Nd5 {[%clk 0:01:09]} 23. Bf2 {[%clk 0:01:42]}  cxd3 {[%clk 0:00:49]} 24. Rxd3 {[%clk 0:01:40]}  Rc8 {[%clk 0:00:16]} 25. Bxd5 {[%clk 0:01:39]}  exd5 {[%clk 0:00:15]} 26. Bd4 {[%clk 0:01:31]}  Bxd4+ {[%clk 0:00:13]} 27. Rxd4 {[%clk 0:01:31]}  Rge8 {[%clk 0:00:08]} 28. Ra4 {[%clk 0:01:30]}  Re2 {[%clk 0:00:03]} 29. Qxe2 {[%clk 0:01:21]}  Qxa4 {[%clk 0:00:03]} 30. Rxd5 {[%clk 0:01:19]}  Qe4 {[%clk 0:00:02]} 31. Qxe4 {[%clk 0:01:17]}  fxe4 {[%clk 0:00:03]} 32. Re5 {[%clk 0:01:17]}  Rc4 {[%clk 0:00:03]} 33. Kf2 {[%clk 0:01:16]}  Kg7 {[%clk 0:00:02]} 34. Ke3 {[%clk 0:01:17]}  a5 {[%clk 0:00:02]} 35. Rxe4 {[%clk 0:01:17]}  Rc5 {[%clk 0:00:02]} 36. Re5 {[%clk 0:01:17]}  Rc4 {[%clk 0:00:02]} 37. Kd3 {[%clk 0:01:17]}  Rc7 {[%clk 0:00:02]} 38. Rb5 {[%clk 0:01:14]}  Rc6 {[%clk 0:00:02]} 39. g4 {[%clk 0:01:13]}  Kf6 {[%clk 0:00:02]} 40. h4 {[%clk 0:01:12]}  Ke6 {[%clk 0:00:02]} 41. g5 {[%clk 0:01:12]}  Rd6+ {[%clk 0:00:03]} 42. Ke4 {[%clk 0:01:13]}  Rc6 {[%clk 0:00:04]} 43. f5+ {[%clk 0:01:13]}  Kd6 {[%clk 0:00:04]} 44. h5 {[%clk 0:01:13]}  Rc4+ {[%clk 0:00:04]} 45. Kf3 {[%clk 0:01:12]}  Kc6 {[%clk 0:00:04]} 46. Re5 {[%clk 0:01:11]}  Rh4 {[%clk 0:00:04]} 47. h6 {[%clk 0:01:12]}  Rh3+ {[%clk 0:00:04]} 48. Kg2 {[%clk 0:01:10]}  Rh5 {[%clk 0:00:04]} 49. f6 {[%clk 0:01:08]}  Kd6 {[%clk 0:00:04]} 50. Rf5 {[%clk 0:01:07]}  Kc6 {[%clk 0:00:01]} 51. c4 {[%clk 0:01:07]}  Kd6 {[%clk 0:00:01]} 52. b3 {[%clk 0:01:08]}  Kc6 {[%clk 0:00:02]} 53. Re5 {[%clk 0:01:06]}  Kd6 {[%clk 0:00:02]} 54. Rd5+ {[%clk 0:01:05]}  Kc6 {[%clk 0:00:03]} 55. Kg3 {[%clk 0:01:05]}  Rh1 {[%clk 0:00:02]} 56. Re5 {[%clk 0:01:01]}  Rb1 {[%clk 0:00:02]} 57. Re7 {[%clk 0:01:00]}  Rxb3+ {[%clk 0:00:02]} 58. Kg4 {[%clk 0:01:00]}  a4 {[%clk 0:00:02]} 59. Rxf7 {[%clk 0:00:59]}  a3 {[%clk 0:00:02]} 60. Ra7 {[%clk 0:00:56]}  Rb4 {[%clk 0:00:02]} 61. f7 {[%clk 0:00:54]}  Rxc4+ {[%clk 0:00:02]} 62. Kf5 {[%clk 0:00:54]}  a2 {[%clk 0:00:02]} 63. f8=Q {[%clk 0:00:52]}  Rc1 {[%clk 0:00:03]} 64. Qc8+ {[%clk 0:00:50]} 1-0


[Site "https://www.chess.com"]

[Event "Titled Tuesday Blitz March 28 Early 2023"]
[White "Lehtosaari, Mauri"]
[Black "Senft, Sean"]
[WhiteFideId "501999"]
[BlackFideId "2044960"]
[WhiteElo "2499"]
[BlackElo "1989"]
[Result "1-0"]
[Round "10"]
[TimeControl "180+2"]
[Date "2023.03.28"]
[WhiteClock "0:01:41"]
[BlackClock "0:01:17"]

1. d4 {[%clk 0:03:00]}  d5 {[%clk 0:03:00]} 2. Nf3 {[%clk 0:03:00]}  c6 {[%clk 0:03:00]} 3. Bg5 {[%clk 0:02:59]}  Nf6 {[%clk 0:03:00]} 4. Nbd2 {[%clk 0:03:00]}  Ne4 {[%clk 0:03:00]} 5. Bf4 {[%clk 0:02:56]}  g6 {[%clk 0:02:58]} 6. e3 {[%clk 0:02:54]}  Nxd2 {[%clk 0:02:56]} 7. Qxd2 {[%clk 0:02:53]}  Bg7 {[%clk 0:02:56]} 8. Be5 {[%clk 0:02:42]}  Bxe5 {[%clk 0:02:55]} 9. Nxe5 {[%clk 0:02:42]}  Nd7 {[%clk 0:02:56]} 10. Nf3 {[%clk 0:02:41]}  Nf6 {[%clk 0:02:56]} 11. Bd3 {[%clk 0:02:41]}  Bf5 {[%clk 0:02:56]} 12. Bxf5 {[%clk 0:02:38]}  gxf5 {[%clk 0:02:57]} 13. Qb4 {[%clk 0:02:37]}  Qb6 {[%clk 0:02:54]} 14. Qxb6 {[%clk 0:02:37]}  axb6 {[%clk 0:02:55]} 15. a3 {[%clk 0:02:36]}  Nd7 {[%clk 0:02:52]} 16. c3 {[%clk 0:02:33]}  f6 {[%clk 0:02:51]} 17. Nh4 {[%clk 0:02:30]}  e6 {[%clk 0:02:51]} 18. g3 {[%clk 0:02:30]}  b5 {[%clk 0:02:51]} 19. Ke2 {[%clk 0:02:29]}  Ke7 {[%clk 0:02:51]} 20. Ng2 {[%clk 0:02:30]}  e5 {[%clk 0:02:50]} 21. Nh4 {[%clk 0:02:30]}  Ke6 {[%clk 0:02:50]} 22. Rhg1 {[%clk 0:02:27]}  Rhg8 {[%clk 0:02:47]} 23. h3 {[%clk 0:02:26]}  h5 {[%clk 0:02:46]} 24. Nf3 {[%clk 0:02:24]}  b6 {[%clk 0:02:44]} 25. Nd2 {[%clk 0:02:21]}  c5 {[%clk 0:02:43]} 26. Nb3 {[%clk 0:02:15]}  Kd6 {[%clk 0:02:34]} 27. Rad1 {[%clk 0:02:11]}  Nb8 {[%clk 0:02:32]} 28. Nd2 {[%clk 0:02:05]}  Nc6 {[%clk 0:02:28]} 29. dxe5+ {[%clk 0:01:55]}  fxe5 {[%clk 0:02:24]} 30. Nf3 {[%clk 0:01:54]}  e4 {[%clk 0:02:19]} 31. Nh4 {[%clk 0:01:52]}  Ke6 {[%clk 0:02:17]} 32. Ng2 {[%clk 0:01:52]}  b4 {[%clk 0:01:47]} 33. Nf4+ {[%clk 0:01:51]}  Kf6 {[%clk 0:01:28]} 34. Nxd5+ {[%clk 0:01:48]}  Ke5 {[%clk 0:01:29]} 35. Nxb6 {[%clk 0:01:47]}  Ra6 {[%clk 0:01:24]} 36. Nd7+ {[%clk 0:01:42]}  Ke6 {[%clk 0:01:17]} 37. Nxc5+ {[%clk 0:01:41]} 1-0


[Site "https://www.chess.com"]

[Event "Titled Tuesday Blitz March 28 Early 2023"]
[White "Valle Maytin, Luis Enrique"]
[Black "Salman, Pavel"]
[WhiteFideId "3503666"]
[BlackFideId "24153753"]
[WhiteElo "2225"]
[BlackElo "2187"]
[Result "1-0"]
[Round "10"]
[TimeControl "180+2"]
[Date "2023.03.28"]
[WhiteClock "0:00:06"]
[BlackClock "0:00:15"]

1. e4 {[%clk 0:03:00]}  g6 {[%clk 0:02:59]} 2. d4 {[%clk 0:03:00]}  Bg7 {[%clk 0:02:59]} 3. f4 {[%clk 0:03:01]}  d6 {[%clk 0:02:59]} 4. Nc3 {[%clk 0:02:57]}  Nf6 {[%clk 0:02:59]} 5. Nf3 {[%clk 0:02:57]}  c5 {[%clk 0:03:00]} 6. e5 {[%clk 0:02:55]}  Ng4 {[%clk 0:02:53]} 7. Bb5+ {[%clk 0:02:39]}  Bd7 {[%clk 0:02:52]} 8. e6 {[%clk 0:02:40]}  fxe6 {[%clk 0:02:47]} 9. Ng5 {[%clk 0:02:39]}  Bxb5 {[%clk 0:02:36]} 10. Nxe6 {[%clk 0:02:39]}  Bxd4 {[%clk 0:02:30]} 11. Nxb5 {[%clk 0:01:31]}  Qa5+ {[%clk 0:01:49]} 12. c3 {[%clk 0:01:19]}  Bf2+ {[%clk 0:01:48]} 13. Kd2 {[%clk 0:01:18]}  Be3+ {[%clk 0:01:48]} 14. Kc2 {[%clk 0:01:16]}  Qa4+ {[%clk 0:01:47]} 15. b3 {[%clk 0:01:08]}  Qe4+ {[%clk 0:01:46]} 16. Kb2 {[%clk 0:01:08]}  Nf2 {[%clk 0:01:37]} 17. Qc2 {[%clk 0:00:48]}  Nd3+ {[%clk 0:01:29]} 18. Kb1 {[%clk 0:00:45]}  d5 {[%clk 0:01:08]} 19. Bxe3 {[%clk 0:00:39]}  Qxe3 {[%clk 0:01:08]} 20. Rd1 {[%clk 0:00:32]}  Kd7 {[%clk 0:01:03]} 21. Nec7 {[%clk 0:00:19]}  c4 {[%clk 0:00:47]} 22. Nxd5 {[%clk 0:00:17]}  Qf2 {[%clk 0:00:41]} 23. Qxf2 {[%clk 0:00:12]}  Nxf2 {[%clk 0:00:42]} 24. Rd2 {[%clk 0:00:12]}  Ne4 {[%clk 0:00:37]} 25. Rd4 {[%clk 0:00:12]}  a6 {[%clk 0:00:30]} 26. Nb6+ {[%clk 0:00:08]}  Kc6 {[%clk 0:00:27]} 27. Nxa8 {[%clk 0:00:08]}  axb5 {[%clk 0:00:19]} 28. Rxe4 {[%clk 0:00:08]}  Nd7 {[%clk 0:00:19]} 29. bxc4 {[%clk 0:00:07]}  Rxa8 {[%clk 0:00:16]} 30. cxb5+ {[%clk 0:00:07]}  Kxb5 {[%clk 0:00:17]} 31. Rxe7 {[%clk 0:00:08]}  Nc5 {[%clk 0:00:17]} 32. Kc2 {[%clk 0:00:07]}  Kc4 {[%clk 0:00:16]} 33. a4 {[%clk 0:00:07]}  h5 {[%clk 0:00:14]} 34. Rd1 {[%clk 0:00:03]}  Nxa4 {[%clk 0:00:10]} 35. Rd4+ {[%clk 0:00:03]}  Kc5 {[%clk 0:00:10]} 36. Re5+ {[%clk 0:00:04]}  Kb6 {[%clk 0:00:10]} 37. Re6+ {[%clk 0:00:04]}  Kc5 {[%clk 0:00:08]} 38. Rxg6 {[%clk 0:00:05]}  Nb6 {[%clk 0:00:08]} 39. Rg5+ {[%clk 0:00:04]}  Kc6 {[%clk 0:00:09]} 40. Re4 {[%clk 0:00:05]}  Ra2+ {[%clk 0:00:09]} 41. Kd3 {[%clk 0:00:05]}  Rxg2 {[%clk 0:00:09]} 42. Rxg2 {[%clk 0:00:04]}  Nd5 {[%clk 0:00:10]} 43. Rg6+ {[%clk 0:00:04]}  Kc5 {[%clk 0:00:10]} 44. Re5 {[%clk 0:00:04]}  b5 {[%clk 0:00:11]} 45. Rgg5 {[%clk 0:00:04]}  Kc6 {[%clk 0:00:12]} 46. Rxd5 {[%clk 0:00:05]}  b4 {[%clk 0:00:13]} 47. Rc5+ {[%clk 0:00:05]}  Kd6 {[%clk 0:00:14]} 48. cxb4 {[%clk 0:00:06]}  Ke6 {[%clk 0:00:14]} 49. Rgd5 {[%clk 0:00:07]}  h4 {[%clk 0:00:15]} 50. f5+ {[%clk 0:00:06]} 1-0


[Site "https://www.chess.com"]

[Event "Titled Tuesday Blitz March 28 Early 2023"]
[White "Manukian, Artak"]
[Black "Manon-og, Ramon Jr."]
[WhiteFideId "13301373"]
[BlackFideId "5200776"]
[WhiteElo "2130"]
[BlackElo "2375"]
[Result "1-0"]
[Round "10"]
[TimeControl "180+2"]
[Date "2023.03.28"]
[WhiteClock "0:00:13"]
[BlackClock "0:00:11"]

1. e4 {[%clk 0:03:00]}  c5 {[%clk 0:02:58]} 2. Nf3 {[%clk 0:03:00]}  d6 {[%clk 0:02:59]} 3. Bb5+ {[%clk 0:03:00]}  Nd7 {[%clk 0:02:58]} 4. O-O {[%clk 0:02:59]}  a6 {[%clk 0:02:58]} 5. Bd3 {[%clk 0:02:58]}  Ngf6 {[%clk 0:02:58]} 6. Re1 {[%clk 0:02:58]}  e5 {[%clk 0:02:58]} 7. a4 {[%clk 0:02:55]}  Be7 {[%clk 0:02:58]} 8. c3 {[%clk 0:02:55]}  O-O {[%clk 0:02:59]} 9. Bc2 {[%clk 0:02:55]}  b6 {[%clk 0:02:58]} 10. d4 {[%clk 0:02:55]}  cxd4 {[%clk 0:02:59]} 11. cxd4 {[%clk 0:02:55]}  Bb7 {[%clk 0:03:00]} 12. Nc3 {[%clk 0:02:54]}  Rc8 {[%clk 0:02:59]} 13. dxe5 {[%clk 0:02:54]}  dxe5 {[%clk 0:02:59]} 14. Bg5 {[%clk 0:02:49]}  Bb4 {[%clk 0:02:44]} 15. Re3 {[%clk 0:02:38]}  h6 {[%clk 0:02:44]} 16. Bh4 {[%clk 0:02:36]}  Qe8 {[%clk 0:02:43]} 17. Nd5 {[%clk 0:02:18]}  Nxd5 {[%clk 0:02:22]} 18. exd5 {[%clk 0:02:19]}  Bxd5 {[%clk 0:02:19]} 19. Qxd5 {[%clk 0:02:07]}  Rxc2 {[%clk 0:02:18]} 20. Qb3 {[%clk 0:02:02]}  Bc5 {[%clk 0:01:52]} 21. Qxc2 {[%clk 0:01:59]}  Bxe3 {[%clk 0:01:52]} 22. fxe3 {[%clk 0:02:00]}  Qe6 {[%clk 0:01:47]} 23. b4 {[%clk 0:01:51]}  Re8 {[%clk 0:01:37]} 24. Rc1 {[%clk 0:01:40]}  Nf8 {[%clk 0:01:33]} 25. Qc4 {[%clk 0:01:36]}  Qd7 {[%clk 0:01:16]} 26. Qxa6 {[%clk 0:01:13]}  Ng6 {[%clk 0:01:13]} 27. Bf2 {[%clk 0:01:09]}  e4 {[%clk 0:01:11]} 28. Nd4 {[%clk 0:01:05]}  Ne5 {[%clk 0:01:09]} 29. Qb5 {[%clk 0:01:04]}  Qe7 {[%clk 0:01:07]} 30. Nc6 {[%clk 0:00:56]}  Nxc6 {[%clk 0:01:06]} 31. Rxc6 {[%clk 0:00:56]}  Rd8 {[%clk 0:01:03]} 32. Rc1 {[%clk 0:00:52]}  Qf6 {[%clk 0:00:50]} 33. a5 {[%clk 0:00:42]}  bxa5 {[%clk 0:00:41]} 34. bxa5 {[%clk 0:00:42]}  Rd2 {[%clk 0:00:41]} 35. Rf1 {[%clk 0:00:37]}  Ra2 {[%clk 0:00:41]} 36. Qe8+ {[%clk 0:00:23]}  Kh7 {[%clk 0:00:37]} 37. Qxe4+ {[%clk 0:00:23]}  g6 {[%clk 0:00:38]} 38. Bg3 {[%clk 0:00:21]}  Ra1 {[%clk 0:00:20]} 39. Be1 {[%clk 0:00:14]}  Qe6 {[%clk 0:00:11]} 40. Qxe6 {[%clk 0:00:13]}  fxe6 {[%clk 0:00:12]} 41. Bc3 {[%clk 0:00:12]}  Ra3 {[%clk 0:00:11]} 42. Rc1 {[%clk 0:00:11]}  g5 {[%clk 0:00:10]} 43. Kf2 {[%clk 0:00:12]}  Kg6 {[%clk 0:00:10]} 44. Ke2 {[%clk 0:00:12]}  Kf5 {[%clk 0:00:11]} 45. Kd3 {[%clk 0:00:13]}  e5 {[%clk 0:00:12]} 46. e4+ {[%clk 0:00:13]}  Ke6 {[%clk 0:00:11]} 47. Ra1 {[%clk 0:00:14]}  Rb3 {[%clk 0:00:11]} 48. a6 {[%clk 0:00:13]} 1-0


[Site "https://www.chess.com"]

[Event "Titled Tuesday Blitz March 28 Early 2023"]
[White "Wilson, Elvin"]
[Black "Kukula, Pawel"]
[WhiteFideId "2014874"]
[BlackFideId "1115081"]
[WhiteElo "2306"]
[BlackElo "2012"]
[Result "0-1"]
[Round "10"]
[TimeControl "180+2"]
[Date "2023.03.28"]
[WhiteClock "0:00:19"]
[BlackClock "0:00:06"]

1. c4 {[%clk 0:03:00]}  Nf6 {[%clk 0:02:57]} 2. g3 {[%clk 0:03:00]}  g6 {[%clk 0:02:57]} 3. Bg2 {[%clk 0:03:00]}  Bg7 {[%clk 0:02:58]} 4. Nc3 {[%clk 0:03:00]}  O-O {[%clk 0:02:59]} 5. e4 {[%clk 0:03:01]}  d6 {[%clk 0:02:57]} 6. Nge2 {[%clk 0:03:01]}  c5 {[%clk 0:02:54]} 7. O-O {[%clk 0:03:02]}  Nc6 {[%clk 0:02:54]} 8. d3 {[%clk 0:03:02]}  Bd7 {[%clk 0:02:51]} 9. h3 {[%clk 0:03:01]}  Qc8 {[%clk 0:02:49]} 10. Kh2 {[%clk 0:03:01]}  a6 {[%clk 0:02:48]} 11. Be3 {[%clk 0:03:00]}  e5 {[%clk 0:02:45]} 12. Qd2 {[%clk 0:02:41]}  Nd4 {[%clk 0:02:40]} 13. f4 {[%clk 0:02:41]}  Ne8 {[%clk 0:02:30]} 14. f5 {[%clk 0:02:41]}  gxf5 {[%clk 0:02:21]} 15. Bh6 {[%clk 0:02:35]}  f4 {[%clk 0:01:59]} 16. Bxg7 {[%clk 0:02:32]}  Nxg7 {[%clk 0:01:53]} 17. gxf4 {[%clk 0:02:28]}  f6 {[%clk 0:01:51]} 18. Nxd4 {[%clk 0:02:18]}  cxd4 {[%clk 0:01:47]} 19. Nd5 {[%clk 0:02:18]}  Qd8 {[%clk 0:01:47]} 20. f5 {[%clk 0:02:18]}  Bc6 {[%clk 0:01:45]} 21. Rf3 {[%clk 0:02:07]}  Bxd5 {[%clk 0:01:27]} 22. exd5 {[%clk 0:02:04]}  Nh5 {[%clk 0:01:17]} 23. Qh6 {[%clk 0:01:53]}  Qe8 {[%clk 0:01:14]} 24. Rg1 {[%clk 0:01:40]}  Kh8 {[%clk 0:01:11]} 25. Rf2 {[%clk 0:01:35]}  Qf7 {[%clk 0:01:06]} 26. Be4 {[%clk 0:01:28]}  Rg8 {[%clk 0:01:02]} 27. Rfg2 {[%clk 0:01:28]}  Nf4 {[%clk 0:00:56]} 28. Rg4 {[%clk 0:01:18]}  Rxg4 {[%clk 0:00:48]} 29. hxg4 {[%clk 0:01:14]}  Rg8 {[%clk 0:00:49]} 30. g5 {[%clk 0:01:15]}  Qh5+ {[%clk 0:00:40]} 31. Qxh5 {[%clk 0:01:14]}  Nxh5 {[%clk 0:00:41]} 32. g6 {[%clk 0:01:06]}  hxg6 {[%clk 0:00:30]} 33. fxg6 {[%clk 0:01:04]}  Kg7 {[%clk 0:00:28]} 34. b4 {[%clk 0:00:50]}  Rh8 {[%clk 0:00:22]} 35. Rb1 {[%clk 0:00:45]}  Nf4+ {[%clk 0:00:18]} 36. Kg1 {[%clk 0:00:43]}  Rh5 {[%clk 0:00:08]} 37. c5 {[%clk 0:00:41]}  f5 {[%clk 0:00:08]} 38. Bf3 {[%clk 0:00:35]}  Rh8 {[%clk 0:00:05]} 39. c6 {[%clk 0:00:31]}  Rb8 {[%clk 0:00:05]} 40. b5 {[%clk 0:00:30]}  axb5 {[%clk 0:00:02]} 41. Rxb5 {[%clk 0:00:29]}  b6 {[%clk 0:00:03]} 42. a4 {[%clk 0:00:28]}  Nxd3 {[%clk 0:00:03]} 43. a5 {[%clk 0:00:27]}  e4 {[%clk 0:00:04]} 44. axb6 {[%clk 0:00:25]}  exf3 {[%clk 0:00:03]} 45. c7 {[%clk 0:00:26]}  f2+ {[%clk 0:00:03]} 46. Kf1 {[%clk 0:00:25]}  Re8 {[%clk 0:00:03]} 47. Rb1 {[%clk 0:00:25]}  Re1+ {[%clk 0:00:04]} 48. Kg2 {[%clk 0:00:21]}  f1=Q+ {[%clk 0:00:04]} 49. Kg3 {[%clk 0:00:20]}  Re3+ {[%clk 0:00:05]} 50. Kh4 {[%clk 0:00:20]}  Qf4+ {[%clk 0:00:05]} 51. Kh5 {[%clk 0:00:19]}  Rh3# {[%clk 0:00:06]} 0-1


[Site "https://www.chess.com"]